fUST/lending_fUST_20250223
["ID","MTS","AMOUNT","RATE_DAILY","PERIOD"]
[354114079,1740252646374,-500.0,0.00014273,2]
[354114080,1740252646383,-500.0,0.00014273,2]
[354114081,1740252646393,-500.0,0.00014273,2]
[354114082,1740252646402,-151.0,0.00014273,2]
[354114083,1740252646411,-1163.99,0.00014273,2]
[354114084,1740252646421,-500.0,0.00014273,2]
[354114085,1740252646431,-9318.78,0.00014273,2]
[354114086,1740252646442,-500.0,0.00014273,2]
[354114087,1740252646451,-244.114911,0.00014273,2]
[354114088,1740252646461,-244.114911,0.00014273,2]
[354114089,1740252646470,-151.0,0.00014273,2]
[354114090,1740252646481,-500.0,0.00014273,2]
[354114091,1740252646491,-510.56,0.00014273,2]
[354114092,1740252646500,-500.0,0.00014273,2]
[354114093,1740252646510,-500.0,0.00014273,2]
[354114094,1740252646520,-1660.98,0.00014273,2]
[354114095,1740252646530,-610.8,0.00014273,2]
[354114096,1740252646539,-3409.1,0.00014273,2]
[354114097,1740252646549,-500.0,0.00014273,2]
[354114098,1740252646559,-500.0,0.00014273,2]
[354114099,1740252646568,-1941.58,0.00014273,2]
[354114100,1740252646577,-958.73,0.00014273,2]
[354114101,1740252646587,-500.0,0.00014273,2]
[354114102,1740252646596,-663.73,0.00014273,2]
[354114103,1740252646605,-1799.77,0.00014273,2]
[354114104,1740252646615,-500.0,0.00014273,2]
[354114105,1740252646624,-824.2,0.00014273,2]
[354114106,1740252646634,-757.47,0.00014273,2]
[354114107,1740252646643,-792.13,0.00014273,2]
[354114108,1740252646653,-250.32,0.00014273,2]
[354114109,1740252646662,-500.0,0.00014273,2]
[354114110,1740252646672,-500.0,0.00014273,2]
[354114111,1740252646681,-586.07,0.00014273,2]
[354114112,1740252646691,-839.91,0.00014273,2]
[354114113,1740252646700,-2458.51,0.00014273,2]
[354114114,1740252646710,-7237.67,0.00014273,2]
[354114115,1740252646720,-500.0,0.00014273,2]
[354114116,1740252646729,-906.71,0.00014273,2]
[354114117,1740252646739,-737.26,0.00014273,2]
[354114118,1740252646749,-622.86,0.00014273,2]
[354114119,1740252646759,-500.0,0.00014273,2]
[354114120,1740252646769,-642.53,0.00014273,2]
[354114121,1740252646779,-1637.13,0.00014273,2]
[354114122,1740252646788,-3672.13,0.00014273,2]
[354114123,1740252646799,-500.0,0.00014321,2]
[354114124,1740252646809,-500.0,0.00014356,2]
[354114125,1740252646818,-500.0,0.00014356,2]
[354114126,1740252646829,-500.0,0.00014356,2]
[354114127,1740252646839,-500.0,0.00014356,2]
[354114128,1740252646848,-500.0,0.00014356,2]
[354114129,1740252646862,-560.63,0.00014356,2]
[354114130,1740252646871,-500.0,0.00014356,2]
[354114131,1740252646880,-500.0,0.00014356,2]
[354114132,1740252646889,-500.0,0.00014356,2]
[354114133,1740252646899,-500.0,0.00014356,2]
[354114134,1740252646908,-500.0,0.00014356,2]
[354114135,1740252646917,-500.0,0.00014356,2]
[354114136,1740252646927,-500.0,0.00014356,2]
[354114137,1740252646936,-500.0,0.00014356,2]
[354114138,1740252646945,-500.0,0.00014356,2]
[354114139,1740252646955,-500.0,0.00014356,2]
[354114140,1740252646965,-500.0,0.00014356,2]
[354114141,1740252646974,-500.0,0.00014356,2]
[354114142,1740252646984,-500.0,0.00014356,2]
[354114143,1740252646993,-500.0,0.00014356,2]
[354114144,1740252647002,-500.0,0.00014356,2]
[354114145,1740252647011,-500.0,0.00014356,2]
[354114146,1740252647022,-500.0,0.00014356,2]
[354114147,1740252647031,-225.2,0.00014356,2]
[354114148,1740252647041,-500.0,0.00014356,2]
[354114149,1740252647052,-500.0,0.00014356,2]
[354114150,1740252647062,-1163.99,0.00014356,2]
[354114151,1740252647072,-500.0,0.00014356,2]
[354114152,1740252647082,-9318.78,0.00014356,2]
[354114153,1740252647092,-500.0,0.00014356,2]
[354114154,1740252647103,-500.0,0.00014356,2]
[354114155,1740252647113,-510.56,0.00014356,2]
[354114156,1740252647123,-500.0,0.00014356,2]
[354114157,1740252647134,-500.0,0.00014356,2]
[354114158,1740252647144,-1660.98,0.00014356,2]
[354114159,1740252647156,-3409.1,0.00014356,2]
[354114160,1740252647167,-500.0,0.00014356,2]
[354114161,1740252647177,-500.0,0.00014356,2]
[354114162,1740252647186,-1941.58,0.00014356,2]
[354114163,1740252647199,-958.73,0.00014356,2]
[354114164,1740252647211,-465.44,0.00014356,2]
[354114165,1740252647220,-663.73,0.00014356,2]
[354114166,1740252647230,-1799.77,0.00014356,2]
[354114167,1740252647242,-500.0,0.00014356,2]
[354114168,1740252647253,-824.2,0.00014356,2]
[354114169,1740252647264,-757.47,0.00014356,2]
[354114170,1740252647274,-792.13,0.00014356,2]
[354114171,1740252647283,-500.0,0.00014356,2]
[354114172,1740252647294,-500.0,0.00014356,2]
[354114173,1740252647304,-586.07,0.00014356,2]
[354114174,1740252647320,-839.91,0.00014356,2]
[354114175,1740252647331,-2458.51,0.00014356,2]
[354114176,1740252647342,-7237.67,0.00014356,2]
[354114177,1740252647353,-500.0,0.00014356,2]
[354114178,1740252647364,-906.71,0.00014356,2]
[354114179,1740252647373,-737.26,0.00014356,2]
[354114180,1740252647382,-500.0,0.00014356,2]
[354114181,1740252647392,-1637.13,0.00014356,2]
[354114182,1740252647403,-3672.13,0.00014356,2]
[354114183,1740252647412,-160.27346,0.00014406,5]
[354114184,1740252647423,-383.89258281,0.0001442,2]
[354114185,1740252647432,-383.89258281,0.0001442,2]
[354114186,1740252647441,-383.89258281,0.0001442,2]
[354114187,1740252647453,-383.89258281,0.0001442,2]
[354114188,1740252647462,-383.89258281,0.0001442,2]
[354114189,1740252647472,-383.89258281,0.0001442,2]
[354114190,1740252647482,-383.89258281,0.0001442,2]
[354114191,1740252647492,-383.89258281,0.0001442,2]
[354114192,1740252647501,-383.89258281,0.0001442,2]
[354114193,1740252647512,-383.89258281,0.0001442,2]
[354114194,1740252647521,-383.89258281,0.0001442,2]
[354114195,1740252647530,-383.89258281,0.0001442,2]
[354114196,1740252647539,-383.89258281,0.0001442,2]
[354114197,1740252647548,-383.89258281,0.0001442,2]
[354114198,1740252647557,-383.89258281,0.0001442,2]
[354114199,1740252647567,-383.89258281,0.0001442,2]
[354114200,1740252647576,-383.89258281,0.0001442,2]
[354114201,1740252647586,-383.89258281,0.0001442,2]
[354114202,1740252647595,-383.89258281,0.0001442,2]
[354114203,1740252647604,-383.89,0.0001442,2]
[354114204,1740252647613,-30246.81512585,0.0001443,2]
[354114205,1740252647622,-500.0,0.00014438,2]
[354114206,1740252647630,-500.0,0.00014438,2]
[354114207,1740252647639,-500.0,0.00014438,2]
[354114208,1740252647648,-500.0,0.00014438,2]
[354114209,1740252647657,-500.0,0.00014438,2]
[354114210,1740252647666,-560.63,0.00014438,2]
[354114211,1740252647675,-438.64,0.00014438,2]
[354114212,1740252647684,-500.0,0.00014438,2]
[354114213,1740252647693,-286.08,0.00014438,2]
[354114214,1740252647702,-500.0,0.00014438,2]
[354114215,1740252647711,-500.0,0.00014438,2]
[354114216,1740252647720,-500.0,0.00014438,2]
[354114217,1740252647794,-500.0,0.00014438,2]
[354114218,1740252647803,-500.0,0.00014438,2]
[354114219,1740252647812,-500.0,0.00014438,2]
[354114220,1740252647821,-151.0,0.00014438,2]
[354114221,1740252647830,-151.0,0.00014438,2]
[354114222,1740252647839,-187.44,0.00014438,2]
[354114223,1740252647848,-151.0,0.00014438,2]
[354114224,1740252647857,-500.0,0.00014438,2]
[354114225,1740252647866,-1163.99,0.00014438,2]
[354114226,1740252647876,-500.0,0.00014438,2]
[354114227,1740252647885,-9318.78,0.00014438,2]
[354114228,1740252647894,-500.0,0.00014438,2]
[354114229,1740252647903,-244.114911,0.00014438,2]
[354114230,1740252647912,-244.114911,0.00014438,2]
[354114231,1740252647921,-151.0,0.00014438,2]
[354114232,1740252647931,-500.0,0.00014438,2]
[354114233,1740252647940,-510.56,0.00014438,2]
[354114234,1740252647950,-500.0,0.00014438,2]
[354114235,1740252647959,-500.0,0.00014438,2]
[354114236,1740252647968,-1660.98,0.00014438,2]
[354114237,1740252647977,-3409.1,0.00014438,2]
[354114238,1740252647987,-500.0,0.00014438,2]
[354114239,1740252647996,-500.0,0.00014438,2]
[354114240,1740252648005,-1941.58,0.00014438,2]
[354114241,1740252648015,-958.73,0.00014438,2]
[354114242,1740252648024,-663.73,0.00014438,2]
[354114243,1740252648034,-1799.77,0.00014438,2]
[354114244,1740252648043,-500.0,0.00014438,2]
[354114245,1740252648053,-824.2,0.00014438,2]
[354114246,1740252648062,-757.47,0.00014438,2]
[354114247,1740252648072,-792.13,0.00014438,2]
[354114248,1740252648081,-500.0,0.00014438,2]
[354114249,1740252648092,-500.0,0.00014438,2]
[354114250,1740252648101,-586.07,0.00014438,2]
[354114251,1740252648111,-839.91,0.00014438,2]
[354114252,1740252648120,-2458.51,0.00014438,2]
[354114253,1740252648130,-228.16567,0.00014438,2]
[354114254,1740252648139,-7237.67,0.00014438,2]
[354114255,1740252648149,-228.16567,0.00014438,2]
[354114256,1740252648160,-579.45,0.00014438,2]
[354114257,1740252648170,-906.71,0.00014438,2]
[354114258,1740252648179,-737.26,0.00014438,2]
[354114259,1740252648189,-500.0,0.00014438,2]
[354114260,1740252648199,-151.0,0.00014438,2]
[354114261,1740252648209,-1637.13,0.00014438,2]
[354114262,1740252648219,-3672.13,0.00014438,2]
[354114263,1740252648228,-266.279421,0.00014438,2]
[354114264,1740252648239,-109784.49049246,0.000145,2]
[354114265,1740252648248,-7167.0,0.000145,2]
[354114266,1740252648257,-81372.23072327,0.00014519,5]
[354114267,1740252648267,-149247.83786505,0.0001452,5]
[354114268,1740252648278,-500.0,0.0001452,2]
[354114269,1740252648290,-500.0,0.0001452,2]
[354114270,1740252648300,-151.0,0.0001452,2]
[354114271,1740252648309,-500.0,0.0001452,2]
[354114272,1740252648318,-560.63,0.0001452,2]
[354114273,1740252648328,-626.48,0.0001452,2]
[354114274,1740252648338,-563.93,0.0001452,2]
[354114275,1740252648347,-172.240725,0.0001452,2]
[354114276,1740252648358,-172.240725,0.0001452,2]
[354114277,1740252648369,-255.2,0.0001452,2]
[354114278,1740252648378,-399.76,0.0001452,2]
[354114279,1740252648388,-500.0,0.0001452,2]
[354114280,1740252648398,-500.0,0.0001452,2]
[354114281,1740252648407,-151.0,0.0001452,2]
[354114282,1740252648417,-372.0,0.0001452,2]
[354114283,1740252648426,-151.0,0.0001452,2]
[354114284,1740252648435,-151.0,0.0001452,2]
[354114285,1740252648444,-500.0,0.0001452,2]
[354114286,1740252648454,-151.0,0.0001452,2]
[354114287,1740252648463,-1163.99,0.0001452,2]
[354114288,1740252648473,-500.0,0.0001452,2]
[354114289,1740252648482,-9318.78,0.0001452,2]
[354114290,1740252648492,-330.4,0.0001452,2]
[354114291,1740252648502,-500.0,0.0001452,2]
[354114292,1740252648511,-510.56,0.0001452,2]
[354114293,1740252648520,-500.0,0.0001452,2]
[354114294,1740252648529,-500.0,0.0001452,2]
[354114295,1740252648538,-1660.98,0.0001452,2]
[354114296,1740252648548,-3409.1,0.0001452,2]
[354114297,1740252648557,-500.0,0.0001452,2]
[354114298,1740252648566,-153.0,0.0001452,2]
[354114299,1740252648575,-1941.58,0.0001452,2]
[354114300,1740252648584,-958.73,0.0001452,2]
[354114301,1740252648593,-663.73,0.0001452,2]
[354114302,1740252648603,-1799.77,0.0001452,2]
[354114303,1740252648612,-500.0,0.0001452,2]
[354114304,1740252648622,-824.2,0.0001452,2]
[354114305,1740252648631,-757.47,0.0001452,2]
[354114306,1740252648640,-792.13,0.0001452,2]
[354114307,1740252648650,-174.47,0.0001452,2]
[354114308,1740252648659,-156.27,0.0001452,2]
[354114309,1740252648668,-586.07,0.0001452,2]
[354114310,1740252648677,-839.91,0.0001452,2]
[354114311,1740252648687,-2458.51,0.0001452,2]
[354114312,1740252648696,-7237.67,0.0001452,2]
[354114313,1740252648706,-906.71,0.0001452,2]
[354114314,1740252648715,-737.26,0.0001452,2]
[354114315,1740252648725,-500.0,0.0001452,2]
[354114316,1740252648734,-151.0,0.0001452,2]
[354114317,1740252648743,-1637.13,0.0001452,2]
[354114318,1740252648752,-3672.13,0.0001452,2]
[354114319,1740252648761,-500.0,0.00014602,2]
[354114320,1740252648771,-500.0,0.00014602,2]
[354114321,1740252648779,-500.0,0.00014602,2]
[354114322,1740252648789,-560.63,0.00014602,2]
[354114323,1740252648798,-500.0,0.00014602,2]
[354114324,1740252648807,-637.52,0.00014602,2]
[354114325,1740252648816,-358.96,0.00014602,2]
[354114326,1740252648825,-1163.99,0.00014602,2]
[354114327,1740252648835,-500.0,0.00014602,2]
[354114328,1740252648844,-9318.78,0.00014602,2]
[354114329,1740252648854,-500.0,0.00014602,2]
[354114330,1740252648863,-510.56,0.00014602,2]
[354114331,1740252648872,-500.0,0.00014602,2]
[354114332,1740252648882,-500.0,0.00014602,2]
[354114333,1740252648891,-1660.98,0.00014602,2]
[354114334,1740252648900,-3409.1,0.00014602,2]
[354114335,1740252648910,-500.0,0.00014602,2]
[354114336,1740252648919,-1941.58,0.00014602,2]
[354114337,1740252648928,-958.73,0.00014602,2]
[354114338,1740252648937,-663.73,0.00014602,2]
[354114339,1740252648946,-1799.77,0.00014602,2]
[354114340,1740252648955,-500.0,0.00014602,2]
[354114341,1740252648964,-824.2,0.00014602,2]
[354114342,1740252648973,-757.47,0.00014602,2]
[354114343,1740252648982,-792.13,0.00014602,2]
[354114344,1740252648991,-586.07,0.00014602,2]
[354114345,1740252649001,-839.91,0.00014602,2]
[354114346,1740252649010,-2458.51,0.00014602,2]
[354114347,1740252649019,-7237.67,0.00014602,2]
[354114348,1740252649028,-906.71,0.00014602,2]
[354114349,1740252649038,-737.26,0.00014602,2]
[354114350,1740252649047,-500.0,0.00014602,2]
[354114351,1740252649056,-1637.13,0.00014602,2]
[354114352,1740252649066,-3672.13,0.00014602,2]
[354114353,1740252649137,-12924.89674434,0.0001462,2]
[354114354,1740252649146,-500.0,0.00014673,2]
[354114355,1740252649160,-500.0,0.00014673,2]
[354114356,1740252649169,-500.0,0.00014673,2]
[354114357,1740252649178,-500.0,0.00014673,2]
[354114358,1740252649189,-228.16567,0.00014683,2]
[354114359,1740252649199,-228.16567,0.00014683,2]
[354114360,1740252649208,-151.0,0.00014683,2]
[354114361,1740252649218,-266.279421,0.00014683,2]
[354114362,1740252649227,-151.0,0.00014684,2]
[354114363,1740252649238,-151.0,0.00014684,2]
[354114364,1740252649247,-151.0,0.00014684,2]
[354114365,1740252649257,-500.0,0.00014684,2]
[354114366,1740252649267,-401.02440281,0.00014684,2]
[354114367,1740252649276,-500.0,0.00014684,2]
[354114368,1740252649286,-560.63,0.00014684,2]
[354114369,1740252649295,-500.0,0.00014684,2]
[354114370,1740252649304,-151.0,0.00014684,2]
[354114371,1740252649314,-151.0,0.00014684,2]
[354114372,1740252649324,-268.346274,0.00014684,2]
[354114373,1740252649333,-1163.99,0.00014684,2]
[354114374,1740252649343,-500.0,0.00014684,2]
[354114375,1740252649352,-9318.78,0.00014684,2]
[354114376,1740252649362,-244.114911,0.00014684,2]
[354114377,1740252649371,-244.114911,0.00014684,2]
[354114378,1740252649380,-281.163726,0.00014684,2]
[354114379,1740252649390,-500.0,0.00014684,2]
[354114380,1740252649400,-510.56,0.00014684,2]
[354114381,1740252649409,-500.0,0.00014684,2]
[354114382,1740252649419,-500.0,0.00014684,2]
[354114383,1740252649427,-1660.98,0.00014684,2]
[354114384,1740252649438,-3409.1,0.00014684,2]
[354114385,1740252649447,-500.0,0.00014684,2]
[354114386,1740252649456,-1941.58,0.00014684,2]
[354114387,1740252649466,-958.73,0.00014684,2]
[354114388,1740252649475,-663.73,0.00014684,2]
[354114389,1740252649484,-1799.77,0.00014684,2]
[354114390,1740252649494,-500.0,0.00014684,2]
[354114391,1740252649504,-824.2,0.00014684,2]
[354114392,1740252649515,-757.47,0.00014684,2]
[354114393,1740252649525,-792.13,0.00014684,2]
[354114394,1740252649534,-586.07,0.00014684,2]
[354114395,1740252649544,-839.91,0.00014684,2]
[354114396,1740252649553,-2458.51,0.00014684,2]
[354114397,1740252649562,-228.16567,0.00014684,2]
[354114398,1740252649572,-7237.67,0.00014684,2]
[354114399,1740252649582,-228.16567,0.00014684,2]
[354114400,1740252649591,-906.71,0.00014684,2]
[354114401,1740252649600,-737.26,0.00014684,2]
[354114402,1740252649609,-500.0,0.00014684,2]
[354114403,1740252649619,-1637.13,0.00014684,2]
[354114404,1740252649628,-151.0,0.00014684,2]
[354114405,1740252649637,-3672.13,0.00014684,2]
[354114406,1740252649646,-266.279421,0.00014684,2]
[354114407,1740252649655,-1000.0,0.00014721,2]
[354114408,1740252649665,-519.82,0.00014767,2]
[354114409,1740252649673,-500.0,0.00014767,2]
[354114410,1740252649683,-560.63,0.00014767,2]
[354114411,1740252649691,-500.0,0.00014767,2]
[354114412,1740252649701,-151.0,0.00014767,2]
[354114413,1740252649711,-151.0,0.00014767,2]
[354114414,1740252649720,-151.0,0.00014767,2]
[354114415,1740252649730,-151.0,0.00014767,2]
[354114416,1740252649739,-1163.99,0.00014767,2]
[354114417,1740252649749,-500.0,0.00014767,2]
[354114418,1740252649759,-9318.78,0.00014767,2]
[354114419,1740252649768,-244.114911,0.00014767,2]
[354114420,1740252649778,-244.114911,0.00014767,2]
[354114421,1740252649787,-500.0,0.00014767,2]
[354114422,1740252649796,-510.56,0.00014767,2]
[354114423,1740252649805,-500.0,0.00014767,2]
[354114424,1740252649814,-500.0,0.00014767,2]
[354114425,1740252649823,-1660.98,0.00014767,2]
[354114426,1740252649833,-3409.1,0.00014767,2]
[354114427,1740252649842,-500.0,0.00014767,2]
[354114428,1740252649851,-1941.58,0.00014767,2]
[354114429,1740252649860,-958.73,0.00014767,2]
[354114430,1740252649869,-663.73,0.00014767,2]
[354114431,1740252649879,-1799.77,0.00014767,2]
[354114432,1740252649888,-500.0,0.00014767,2]
[354114433,1740252649897,-824.2,0.00014767,2]
[354114434,1740252649907,-757.47,0.00014767,2]
[354114435,1740252649916,-792.13,0.00014767,2]
[354114436,1740252649924,-586.07,0.00014767,2]
[354114437,1740252649933,-839.91,0.00014767,2]
[354114438,1740252649943,-2458.51,0.00014767,2]
[354114439,1740252649953,-7237.67,0.00014767,2]
[354114440,1740252649963,-906.71,0.00014767,2]
[354114441,1740252649972,-737.26,0.00014767,2]
[354114442,1740252649981,-500.0,0.00014767,2]
[354114443,1740252649991,-1637.13,0.00014767,2]
[354114444,1740252650000,-3672.13,0.00014767,2]
[354114445,1740252650009,-151.0,0.00014849,2]
[354114446,1740252650018,-500.0,0.00014849,2]
[354114447,1740252650028,-560.63,0.00014849,2]
[354114448,1740252650036,-172.240725,0.00014849,2]
[354114449,1740252650045,-172.240725,0.00014849,2]
[354114450,1740252650055,-500.0,0.00014849,2]
[354114451,1740252650063,-1163.99,0.00014849,2]
[354114452,1740252650073,-500.0,0.00014849,2]
[354114453,1740252650082,-9318.78,0.00014849,2]
[354114454,1740252650091,-500.0,0.00014849,2]
[354114455,1740252650100,-510.56,0.00014849,2]
[354114456,1740252650110,-500.0,0.00014849,2]
[354114457,1740252650119,-500.0,0.00014849,2]
[354114458,1740252650128,-1660.98,0.00014849,2]
[354114459,1740252650136,-3409.1,0.00014849,2]
[354114460,1740252650146,-500.0,0.00014849,2]
[354114461,1740252650155,-1941.58,0.00014849,2]
[354114462,1740252650168,-958.73,0.00014849,2]
[354114463,1740252650177,-663.73,0.00014849,2]
[354114464,1740252650187,-1799.77,0.00014849,2]
[354114465,1740252650198,-500.0,0.00014849,2]
[354114466,1740252650207,-824.2,0.00014849,2]
[354114467,1740252650217,-757.47,0.00014849,2]
[354114468,1740252650228,-792.13,0.00014849,2]
[354114469,1740252650238,-586.07,0.00014849,2]
[354114470,1740252650247,-839.91,0.00014849,2]
[354114471,1740252650256,-2458.51,0.00014849,2]
[354114472,1740252650265,-7237.67,0.00014849,2]
[354114473,1740252650275,-906.71,0.00014849,2]
[354114474,1740252650284,-737.26,0.00014849,2]
[354114475,1740252650293,-272.48,0.00014849,2]
[354114476,1740252650302,-1637.13,0.00014849,2]
[354114477,1740252650311,-3672.13,0.00014849,2]
[354114478,1740252650374,-1168.87158345,0.0001488,2]
[354114479,1740252650388,-228.16567,0.000149,2]
[354114480,1740252650397,-228.16567,0.000149,2]
[354114481,1740252650406,-266.279421,0.000149,2]
[354114482,1740252650415,-175.046,0.00014915,2]
[354114483,1740252650425,-572.813,0.00014915,2]
[354114484,1740252650433,-500.0,0.00014931,2]
[354114485,1740252650442,-560.63,0.00014931,2]
[354114486,1740252650451,-500.0,0.00014931,2]
[354114487,1740252650460,-151.0,0.00014931,2]
[354114488,1740252650469,-151.0,0.00014931,2]
[354114489,1740252650478,-151.0,0.00014931,2]
[354114490,1740252650487,-151.0,0.00014931,2]
[354114491,1740252650497,-151.0,0.00014931,2]
[354114492,1740252650507,-151.0,0.00014931,2]
[354114493,1740252650516,-1163.99,0.00014931,2]
[354114494,1740252650526,-500.0,0.00014931,2]
[354114495,1740252650535,-9318.78,0.00014931,2]
[354114496,1740252650543,-244.114911,0.00014931,2]
[354114497,1740252650553,-244.114911,0.00014931,2]
[354114498,1740252650561,-500.0,0.00014931,2]
[354114499,1740252650571,-510.56,0.00014931,2]
[354114500,1740252650579,-500.0,0.00014931,2]
[354114501,1740252650588,-500.0,0.00014931,2]
[354114502,1740252650597,-1660.98,0.00014931,2]
[354114503,1740252650607,-3409.1,0.00014931,2]
[354114504,1740252650616,-434.16,0.00014931,2]
[354114505,1740252650626,-1941.58,0.00014931,2]
[354114506,1740252650634,-958.73,0.00014931,2]
[354114507,1740252650643,-663.73,0.00014931,2]
[354114508,1740252650652,-1799.77,0.00014931,2]
[354114509,1740252650661,-500.0,0.00014931,2]
[354114510,1740252650670,-824.2,0.00014931,2]
[354114511,1740252650680,-757.47,0.00014931,2]
[354114512,1740252650689,-792.13,0.00014931,2]
[354114513,1740252650699,-586.07,0.00014931,2]
[354114514,1740252650709,-839.91,0.00014931,2]
[354114515,1740252650718,-2458.51,0.00014931,2]
[354114516,1740252650727,-7237.67,0.00014931,2]
[354114517,1740252650737,-906.71,0.00014931,2]
[354114518,1740252650746,-737.26,0.00014931,2]
[354114519,1740252650756,-151.0,0.00014931,2]
[354114520,1740252650765,-1637.13,0.00014931,2]
[354114521,1740252650775,-3672.13,0.00014931,2]
[354114522,1740252650784,-6459.16030555,0.00015,3]
[354114523,1740252650793,-151.0,0.00015013,2]
[354114524,1740252650802,-151.0,0.00015013,2]
[354114525,1740252650811,-500.0,0.00015013,2]
[354114526,1740252650820,-560.63,0.00015013,2]
[354114527,1740252650830,-500.0,0.00015013,2]
[354114528,1740252650839,-151.0,0.00015013,2]
[354114529,1740252650848,-151.0,0.00015013,2]
[354114530,1740252650858,-151.0,0.00015013,2]
[354114531,1740252650867,-151.0,0.00015013,2]
[354114532,1740252650876,-260.593372,0.00015013,2]
[354114533,1740252650885,-151.0,0.00015013,2]
[354114534,1740252650895,-1163.99,0.00015013,2]
[354114535,1740252650905,-500.0,0.00015013,2]
[354114536,1740252650914,-9318.78,0.00015013,2]
[354114537,1740252650924,-500.0,0.00015013,2]
[354114538,1740252650934,-510.56,0.00015013,2]
[354114539,1740252650943,-500.0,0.00015013,2]
[354114540,1740252650953,-500.0,0.00015013,2]
[354114541,1740252650962,-1660.98,0.00015013,2]
[354114542,1740252650971,-3409.1,0.00015013,2]
[354114543,1740252650980,-1941.58,0.00015013,2]
[354114544,1740252650990,-958.73,0.00015013,2]
[354114545,1740252650999,-663.73,0.00015013,2]
[354114546,1740252651008,-1799.77,0.00015013,2]
[354114547,1740252651017,-500.0,0.00015013,2]
[354114548,1740252651026,-824.2,0.00015013,2]
[354114549,1740252651036,-757.47,0.00015013,2]
[354114550,1740252651046,-792.13,0.00015013,2]
[354114551,1740252651055,-586.07,0.00015013,2]
[354114552,1740252651065,-839.91,0.00015013,2]
[354114553,1740252651075,-2458.51,0.00015013,2]
[354114554,1740252651085,-7237.67,0.00015013,2]
[354114555,1740252651094,-906.71,0.00015013,2]
[354114556,1740252651103,-737.26,0.00015013,2]
[354114557,1740252651112,-1637.13,0.00015013,2]
[354114558,1740252651123,-3672.13,0.00015013,2]
[354114559,1740252651132,-500.0,0.00015095,2]
[354114560,1740252651141,-560.63,0.00015095,2]
[354114561,1740252651151,-642.42148763,0.00015095,2]
[354114562,1740252651165,-1163.99,0.00015095,2]
[354114563,1740252651175,-500.0,0.00015095,2]
[354114564,1740252651185,-9318.78,0.00015095,2]
[354114565,1740252651196,-294.08,0.00015095,2]
[354114566,1740252651205,-510.56,0.00015095,2]
[354114567,1740252651215,-469.92,0.00015095,2]
[354114568,1740252651225,-500.0,0.00015095,2]
[354114569,1740252651235,-1660.98,0.00015095,2]
[354114570,1740252651245,-3409.1,0.00015095,2]
[354114571,1740252651254,-1941.58,0.00015095,2]
[354114572,1740252651264,-958.73,0.00015095,2]
[354114573,1740252651273,-663.73,0.00015095,2]
[354114574,1740252651283,-1799.77,0.00015095,2]
[354114575,1740252651293,-500.0,0.00015095,2]
[354114576,1740252651303,-824.2,0.00015095,2]
[354114577,1740252651313,-757.47,0.00015095,2]
[354114578,1740252651322,-792.13,0.00015095,2]